[Event "Polofinale MCR juniorek 2023"]
[Site "Czech Republic"]
[Date "2023.11.14"]
[Round "5.9"]
[White "Nova, Anezka"]
[Black "Kavanova, Anezka"]
[Result "1-0"]
[TimeControl "90 min per 40 moves + 15 min + 30 sec / move from move 1"]
[WhiteFideId "23727144"]
[BlackFideId "23745517"]
[WhiteElo "1578"]
[BlackElo "1434"]

1. e4 {[%clk 01:30:58]} {[%emt 00:00:01]} c5 {[%clk 01:30:54]} {[%emt
00:00:06]} 2. Nf3 {[%clk 01:31:23]} {[%emt 00:00:05]} Nc6 {[%clk 01:31:18]}
{[%emt 00:00:05]} 3. c3 {[%clk 01:31:49]} {[%emt 00:00:04]} d5 {[%clk
01:31:44]} {[%emt 00:00:04]} 4. exd5 {[%clk 01:32:13]} {[%emt 00:00:07]} Qxd5
{[%clk 01:32:09]} {[%emt 00:00:05]} 5. d4 {[%clk 01:32:38]} {[%emt 00:00:04]}
Bg4 {[%clk 01:32:24]} {[%emt 00:00:14]} 6. Be2 {[%clk 01:32:41]} {[%emt
00:00:28]} e6 {[%clk 01:32:47]} {[%emt 00:00:07]} 7. Be3 {[%clk 01:29:24]}
{[%emt 00:03:47]} cxd4 {[%clk 01:23:44]} {[%emt 00:09:33]} 8. cxd4 {[%clk
01:26:24]} {[%emt 00:03:30]} Bb4+ {[%clk 01:14:11]} {[%emt 00:10:03]} 9. Nc3
{[%clk 01:23:36]} {[%emt 00:03:18]} Nf6 {[%clk 01:05:38]} {[%emt 00:09:02]} 10.
O-O {[%clk 01:20:01]} {[%emt 00:04:05]} Qd8 {[%clk 01:01:09]} {[%emt 00:05:00]}
11. a3 {[%clk 01:07:51]} {[%emt 00:12:41]} Ba5 {[%clk 00:59:09]} {[%emt
00:02:30]} 12. Rc1 {[%clk 01:03:47]} {[%emt 00:04:34]} Bb6 {[%clk 00:53:07]}
{[%emt 00:06:32]} 13. Na4 {[%clk 00:54:41]} {[%emt 00:09:35]} Bc7 {[%clk
00:45:35]} {[%emt 00:08:02]} 14. h3 {[%clk 00:52:39]} {[%emt 00:02:33]} Bh5
{[%clk 00:37:42]} {[%emt 00:08:23]} 15. Bb5 {[%clk 00:49:09]} {[%emt 00:04:00]}
Qd6 {[%clk 00:35:49]} {[%emt 00:02:23]} 16. g3 {[%clk 00:41:40]} {[%emt
00:07:59]} Qd5 {[%clk 00:35:03]} {[%emt 00:01:17]} 17. Bxc6+ {[%clk 00:39:12]}
{[%emt 00:02:59]} bxc6 {[%clk 00:31:29]} {[%emt 00:04:04]} 18. g4 {[%clk
00:37:35]} {[%emt 00:02:07]} Nxg4 {[%clk 00:28:32]} {[%emt 00:03:27]} 19. hxg4
{[%clk 00:33:43]} {[%emt 00:04:23]} Bxg4 {[%clk 00:28:30]} {[%emt 00:00:32]} 20.
Kg2 {[%clk 00:33:17]} {[%emt 00:00:56]} h5 {[%clk 00:22:08]} {[%emt 00:06:52]}
21. Rc5 {[%clk 00:28:25]} {[%emt 00:05:23]} Qd6 {[%clk 00:13:12]} {[%emt
00:09:26]} 22. Rh1 {[%clk 00:25:57]} {[%emt 00:02:58]} h4 {[%clk 00:11:45]}
{[%emt 00:01:57]} 23. Nc3 {[%clk 00:14:46]} {[%emt 00:11:41]} h3+ {[%clk
00:11:26]} {[%emt 00:00:50]} 24. Kf1 {[%clk 00:14:22]} {[%emt 00:00:53]} h2
{[%clk 00:03:08]} {[%emt 00:08:49]} 25. Ne4 {[%clk 00:13:22]} {[%emt 00:01:30]}
Bh3+ {[%clk 00:03:29]} {[%emt 00:00:09]} 26. Ke2 {[%clk 00:13:27]} {[%emt
00:00:25]} Qd7 {[%clk 00:03:32]} {[%emt 00:00:27]} 27. Rg5 {[%clk 00:09:47]}
{[%emt 00:04:10]} f6 {[%clk 00:03:22]} {[%emt 00:00:40]} 28. Nc5 {[%clk
00:08:09]} {[%emt 00:02:08]} Qe7 {[%clk 00:02:59]} {[%emt 00:00:53]} 29. Rg6
{[%clk 00:07:43]} {[%emt 00:00:56]} Bf5 {[%clk 00:03:01]} {[%emt 00:00:28]} 30.
Rg2 {[%clk 00:07:33]} {[%emt 00:00:39]} Bh3 {[%clk 00:03:27]} {[%emt 00:00:04]}
31. Rg6 {[%clk 00:07:58]} {[%emt 00:00:06]} Bf5 {[%clk 00:03:47]} {[%emt
00:00:09]} 32. Rg2 {[%clk 00:05:53]} {[%emt 00:02:35]} Bh3 {[%clk 00:04:11]}
{[%emt 00:00:06]} 33. Rgxh2 {[%clk 00:06:13]} {[%emt 00:00:10]} Bxh2 {[%clk
00:04:35]} {[%emt 00:00:06]} 34. Rxh2 {[%clk 00:06:41]} {[%emt 00:00:02]} Kf7
{[%clk 00:04:09]} {[%emt 00:00:56]} 35. Qa4 {[%clk 00:06:12]} {[%emt 00:00:59]}
Rab8 {[%clk 00:03:42]} {[%emt 00:00:57]} 36. b4 {[%clk 00:06:11]} {[%emt
00:00:31]} Rbc8 {[%clk 00:02:01]} {[%emt 00:02:11]} 37. Ne4 {[%clk 00:06:11]}
{[%emt 00:00:30]} Qc7 {[%clk 00:00:33]} {[%emt 00:01:59]} 38. Neg5+ {[%clk
00:06:04]} {[%emt 00:00:36]} fxg5 {[%clk 00:00:35]} {[%emt 00:00:29]} 39. Nxg5+
{[%clk 00:06:30]} {[%emt 00:00:04]} Ke7 {[%clk 00:00:32]} {[%emt 00:00:33]} 40.
Rxh3 {[%clk 00:06:41]} {[%emt 00:00:18]} Rxh3 {[%clk 00:00:49]} {[%emt
00:00:13]} 41. Nxh3 {[%clk 00:07:08]} {[%emt 00:00:04]} Rf8 {[%clk 00:00:43]}
{[%emt 00:00:36]} 42. Bg5+ {[%clk 00:04:58]} {[%emt 00:02:39]} Kd7 {[%clk
00:00:48]} {[%emt 00:00:25]} 43. Bf4 {[%clk 00:04:37]} {[%emt 00:00:51]} Rxf4
{[%clk 00:00:32]} {[%emt 00:00:47]} 44. Nxf4 {[%clk 00:05:02]} {[%emt
00:00:05]} Qxf4 {[%clk 00:00:59]} {[%emt 00:00:03]} 45. Qxa7+ {[%clk 00:05:01]}
{[%emt 00:00:31]} Ke8 {[%clk 00:00:58]} {[%emt 00:00:30]} 46. Qa8+ {[%clk
00:05:03]} {[%emt 00:00:28]} Kd7 {[%clk 00:01:18]} {[%emt 00:00:10]} 47. Qb7+
{[%clk 00:05:28]} {[%emt 00:00:04]} Kd8 {[%emt 00:00:36]} 48. Qxc6 {[%emt
00:00:17]} Qxd4 {[%clk 00:00:35]} {[%emt 00:00:20]} 49. Qa8+ {[%clk 00:04:59]}
{[%emt 00:01:00]} Ke7 {[%clk 00:00:41]} {[%emt 00:00:23]} 50. Qb7+ {[%clk
00:05:06]} {[%emt 00:00:23]} Kf6 {[%clk 00:00:44]} {[%emt 00:00:27]} 51. Qf3+
{[%clk 00:05:11]} {[%emt 00:00:24]} Ke7 {[%clk 00:01:07]} {[%emt 00:00:07]} 52.
Qd3 {[%clk 00:04:05]} {[%emt 00:01:36]} Qb2+ {[%clk 00:00:38]} {[%emt
00:00:59]} 53. Ke3 {[%clk 00:04:06]} {[%emt 00:00:29]} Qc1+ {[%clk 00:00:36]}
{[%emt 00:00:32]} 54. Ke4 {[%clk 00:03:39]} {[%emt 00:00:57]} Qe1+ {[%clk
00:00:32]} {[%emt 00:00:35]} 55. Qe3 {[%clk 00:03:53]} {[%emt 00:00:15]} Qb1+
{[%clk 00:00:45]} {[%emt 00:00:17]} 56. Kd4 {[%clk 00:03:46]} {[%emt 00:00:37]}
Qd1+ {[%clk 00:00:40]} {[%emt 00:00:36]} 57. Qd3 {[%clk 00:03:18]} {[%emt
00:00:57]} Qa1+ {[%clk 00:00:39]} {[%emt 00:00:31]} 58. Kc4 {[%clk 00:03:00]}
{[%emt 00:00:48]} Qc1+ {[%clk 00:00:45]} {[%emt 00:00:24]} 59. Qc3 {[%clk
00:03:12]} {[%emt 00:00:18]} Qf4+ {[%clk 00:00:52]} {[%emt 00:00:22]} 60. Kb3
{[%clk 00:03:30]} {[%emt 00:00:12]} Qxf2 {[%clk 00:00:37]} {[%emt 00:00:46]} 61.
Qxg7+ {[%clk 00:03:33]} {[%emt 00:00:27]} Kd6 {[%clk 00:00:49]} {[%emt
00:00:18]} 62. Qc3 {[%clk 00:02:40]} {[%emt 00:01:23]} Qb6 {[%clk 00:00:31]}
{[%emt 00:00:48]} 63. a4 {[%clk 00:02:49]} {[%emt 00:00:21]} Qb7 {[%clk
00:00:36]} {[%emt 00:00:25]} 64. Qc5+ {[%clk 00:02:55]} {[%emt 00:00:24]} Kd7
{[%clk 00:01:00]} {[%emt 00:00:06]} 65. Qd4+ {[%clk 00:03:05]} {[%emt
00:00:20]} Kc8 {[%clk 00:16:00]} {[%emt 00:01:00]} 66. Qh8+ {[%clk 00:19:02]}
{[%emt 00:00:33]} 1-0

[Event "Polofinale MCR juniorek 2023"]
[Site "Czech Republic"]
[Date "2023.11.14"]
[Round "5.10"]
[White "Stavova, Marketa"]
[Black "Vavrinkova, Marie"]
[Result "0-1"]
[TimeControl "90 min per 40 moves + 15 min + 30 sec / move from move 1"]
[WhiteFideId "23714824"]
[BlackFideId "392154"]
[WhiteElo "1433"]
[BlackElo "1492"]

1. e4 {[%clk 01:30:56]} {[%emt 00:00:03]} d6 {[%clk 01:30:48]} {[%emt
00:00:13]} 2. d4 {[%clk 01:31:01]} {[%emt 00:00:25]} Nf6 {[%clk 01:30:57]}
{[%emt 00:00:21]} 3. Bd3 {[%clk 01:30:48]} {[%emt 00:00:43]} g6 {[%clk
01:30:52]} {[%emt 00:00:35]} 4. Nf3 {[%clk 01:30:22]} {[%emt 00:00:56]} Bg7
{[%clk 01:30:32]} {[%emt 00:00:50]} 5. O-O {[%clk 01:30:12]} {[%emt 00:00:40]}
O-O {[%clk 01:30:27]} {[%emt 00:00:35]} 6. h3 {[%clk 01:30:05]} {[%emt
00:00:37]} e5 {[%clk 01:29:24]} {[%emt 00:01:34]} 7. dxe5 {[%clk 01:28:47]}
{[%emt 00:01:47]} dxe5 {[%clk 01:29:18]} {[%emt 00:00:36]} 8. Nc3 {[%clk
01:26:56]} {[%emt 00:02:22]} Nbd7 {[%clk 01:25:30]} {[%emt 00:04:18]} 9. Be3
{[%clk 01:25:15]} {[%emt 00:02:10]} Nh5 {[%clk 01:22:16]} {[%emt 00:03:44]} 10.
Qd2 {[%clk 01:23:58]} {[%emt 00:01:48]} f5 {[%clk 01:18:31]} {[%emt 00:04:14]}
11. exf5 {[%clk 01:22:04]} {[%emt 00:02:24]} gxf5 {[%clk 01:18:39]} {[%emt
00:00:22]} 12. Bc4+ {[%clk 01:21:44]} {[%emt 00:00:50]} Kh8 {[%clk 01:18:28]}
{[%emt 00:00:40]} 13. Bg5 {[%clk 01:16:29]} {[%emt 00:05:46]} Bf6 {[%clk
01:14:16]} {[%emt 00:04:43]} 14. Bh6 {[%clk 01:14:19]} {[%emt 00:02:40]} Bg7
{[%clk 01:13:51]} {[%emt 00:00:54]} 15. Bxg7+ {[%clk 01:13:45]} {[%emt
00:01:05]} Nxg7 {[%clk 01:13:04]} {[%emt 00:01:17]} 16. Rad1 {[%clk 01:13:23]}
{[%emt 00:00:51]} Qf6 {[%clk 01:08:50]} {[%emt 00:04:45]} 17. Rfe1 {[%clk
01:09:41]} {[%emt 00:04:13]} c6 {[%clk 01:05:02]} {[%emt 00:04:18]} 18. a3
{[%clk 01:05:49]} {[%emt 00:04:22]} e4 {[%clk 01:03:05]} {[%emt 00:02:26]} 19.
Ng5 {[%clk 01:05:06]} {[%emt 00:01:14]} Ne5 {[%clk 01:02:18]} {[%emt 00:01:17]}
20. Bb3 {[%clk 01:04:07]} {[%emt 00:01:29]} h6 {[%clk 01:01:29]} {[%emt
00:01:19]} 21. f4 {[%clk 00:59:36]} {[%emt 00:05:02]} exf3 {[%clk 01:00:17]}
{[%emt 00:01:42]} 22. Nxf3 {[%clk 00:59:46]} {[%emt 00:00:20]} Nxf3+ {[%clk
01:00:15]} {[%emt 00:00:32]} 23. gxf3 {[%clk 01:00:08]} {[%emt 00:00:09]} f4
{[%clk 00:58:47]} {[%emt 00:01:57]} 24. Kh2 {[%clk 00:57:54]} {[%emt 00:02:43]}
Qh4 {[%clk 00:57:26]} {[%emt 00:01:51]} 25. Qg2 {[%clk 00:57:34]} {[%emt
00:00:50]} Nf5 {[%clk 00:55:56]} {[%emt 00:02:01]} 26. Rg1 {[%clk 00:52:21]}
{[%emt 00:05:43]} Qg3+ {[%clk 00:54:16]} {[%emt 00:02:10]} 27. Qxg3 {[%clk
00:52:44]} {[%emt 00:00:08]} fxg3+ {[%clk 00:53:15]} {[%emt 00:01:30]} 28. Kh1
{[%clk 00:53:07]} {[%emt 00:00:06]} Ne3 {[%clk 00:47:45]} {[%emt 00:06:00]} 29.
Rd3 {[%clk 00:51:50]} {[%emt 00:01:47]} g2+ {[%clk 00:47:31]} {[%emt 00:00:44]}
30. Kh2 {[%clk 00:52:00]} {[%emt 00:00:19]} Rxf3 {[%clk 00:45:51]} {[%emt
00:02:10]} 31. Rc1 {[%clk 00:49:40]} {[%emt 00:02:51]} Rxh3+ {[%clk 00:44:58]}
{[%emt 00:01:23]} 32. Kg1 {[%clk 00:50:01]} {[%emt 00:00:09]} Rh1+ {[%clk
00:44:59]} {[%emt 00:00:29]} 0-1

[Event "Polofinale MCR juniorek 2023"]
[Site "Czech Republic"]
[Date "2023.11.15"]
[Round "6.1"]
[White "Brezikova, Beata"]
[Black "Buchtova, Viktorie"]
[Result "1/2-1/2"]
[TimeControl "90 min per 40 moves + 15 min + 30 sec / move from move 1"]
[WhiteFideId "23727250"]
[BlackFideId "23714786"]
[WhiteElo "1622"]
[BlackElo "1801"]

1. e4 {[%clk 01:30:59]} c5 {[%clk 01:30:54]} {[%emt 00:00:06]} 2. Nc3 {[%clk
01:31:25]} {[%emt 00:00:03]} Nc6 {[%clk 01:31:13]} {[%emt 00:00:11]} 3. Nge2
{[%clk 01:31:50]} {[%emt 00:00:05]} g6 {[%clk 01:31:38]} {[%emt 00:00:05]} 4.
g3 {[%clk 01:32:11]} {[%emt 00:00:09]} Bg7 {[%clk 01:31:55]} {[%emt 00:00:13]}
5. Bg2 {[%clk 01:32:32]} {[%emt 00:00:09]} d6 {[%clk 01:32:11]} {[%emt
00:00:14]} 6. O-O {[%clk 01:32:35]} {[%emt 00:00:26]} e6 {[%clk 01:32:37]}
{[%emt 00:00:05]} 7. d3 {[%clk 01:32:47]} {[%emt 00:00:18]} Nge7 {[%clk
01:32:58]} {[%emt 00:00:09]} 8. Be3 {[%clk 01:32:29]} {[%emt 00:00:47]} O-O
{[%clk 01:32:46]} {[%emt 00:00:42]} 9. f4 {[%clk 01:31:21]} {[%emt 00:01:38]}
Nd4 {[%clk 01:32:33]} {[%emt 00:00:44]} 10. Bf2 {[%clk 01:30:32]} {[%emt
00:01:18]} Rb8 {[%clk 01:32:38]} {[%emt 00:00:24]} 11. g4 {[%clk 01:27:25]}
{[%emt 00:03:38]} f5 {[%clk 01:31:59]} {[%emt 00:01:09]} 12. exf5 {[%clk
01:19:29]} {[%emt 00:08:26]} gxf5 {[%clk 01:31:23]} {[%emt 00:01:06]} 13. g5
{[%clk 01:18:13]} {[%emt 00:01:46]} b5 {[%clk 01:31:24]} {[%emt 00:00:26]} 14.
Nxd4 {[%clk 01:16:57]} {[%emt 00:01:49]} cxd4 {[%clk 01:30:45]} {[%emt
00:01:10]} 15. Ne2 {[%clk 01:16:38]} {[%emt 00:00:49]} e5 {[%clk 01:29:07]}
{[%emt 00:02:08]} 16. Kh1 {[%clk 01:07:42]} {[%emt 00:09:25]} Bb7 {[%clk
01:24:47]} {[%emt 00:04:50]} 17. Rg1 {[%clk 01:04:51]} {[%emt 00:03:21]} Nd5
{[%clk 01:19:22]} {[%emt 00:05:56]} 18. Qc1 {[%clk 01:00:08]} {[%emt 00:05:13]}
Kh8 {[%clk 01:13:18]} {[%emt 00:06:34]} 19. h4 {[%clk 00:55:08]} {[%emt
00:05:31]} Qe8 {[%clk 00:56:06]} {[%emt 00:17:42]} 20. Qd2 {[%clk 00:49:25]}
{[%emt 00:06:13]} Qh5 {[%clk 00:53:37]} {[%emt 00:02:58]} 21. Bg3 {[%clk
00:44:21]} {[%emt 00:05:34]} Qg4 {[%clk 00:41:33]} {[%emt 00:12:34]} 22. Kh2
{[%clk 00:39:41]} {[%emt 00:05:09]} Ne3 {[%clk 00:21:51]} {[%emt 00:20:13]} 23.
Bxb7 {[%clk 00:32:08]} {[%emt 00:08:03]} Rxb7 {[%clk 00:21:59]} {[%emt
00:00:22]} 24. c3 {[%clk 00:29:44]} {[%emt 00:02:54]} exf4 {[%clk 00:18:15]}
{[%emt 00:04:13]} 25. Nxf4 {[%clk 00:28:53]} {[%emt 00:01:21]} Be5 {[%clk
00:13:10]} {[%emt 00:05:35]} 26. Qf2 {[%clk 00:26:32]} {[%emt 00:02:51]} b4
{[%clk 00:08:26]} {[%emt 00:05:15]} 27. Rae1 {[%clk 00:22:35]} {[%emt
00:04:27]} bxc3 {[%clk 00:01:59]} {[%emt 00:06:57]} 28. b3 {[%clk 00:18:45]}
{[%emt 00:04:20]} Rb5 {[%clk 00:01:12]} {[%emt 00:01:16]} 29. Kh1 {[%clk
00:15:30]} {[%emt 00:03:45]} Bxf4 {[%clk 00:01:04]} {[%emt 00:00:38]} 30. Qxf4
{[%clk 00:13:56]} {[%emt 00:02:04]} Qxf4 {[%clk 00:01:08]} {[%emt 00:00:26]} 31.
Bxf4 {[%clk 00:14:21]} {[%emt 00:00:05]} Rd5 {[%clk 00:00:39]} {[%emt
00:00:59]} 32. Bxe3 {[%clk 00:11:46]} {[%emt 00:03:06]} 1/2-1/2

[Event "Polofinale MCR juniorek 2023"]
[Site "Czech Republic"]
[Date "2023.11.15"]
[Round "6.2"]
[White "Jakubse, Tamae Severina"]
[Black "Sulcova, Tereza Radmila"]
[Result "0-1"]
[TimeControl "90 min per 40 moves + 15 min + 30 sec / move from move 1"]
[WhiteFideId "23745975"]
[BlackFideId "395196"]
[WhiteElo "1679"]
[BlackElo "1671"]

1. e4 {[%clk 01:30:57]} {[%emt 00:00:02]} g6 {[%clk 01:30:47]} {[%emt
00:00:13]} 2. d4 {[%emt 00:00:07]} Nf6 {[%emt 00:00:12]} 3. e5 {[%clk
01:31:02]} {[%emt 00:00:07]} Nh5 {[%clk 01:31:09]} {[%emt 00:00:08]} 4. Nf3
{[%clk 01:31:22]} {[%emt 00:00:10]} d5 {[%clk 01:28:11]} {[%emt 00:03:27]} 5.
c4 {[%clk 01:26:34]} {[%emt 00:05:19]} c6 {[%clk 01:20:43]} {[%emt 00:07:58]} 6.
Nc3 {[%clk 01:23:37]} {[%emt 00:03:27]} Be6 {[%clk 01:08:58]} {[%emt 00:12:16]}
7. Ng5 {[%clk 01:15:53]} {[%emt 00:08:13]} Ng7 {[%clk 01:07:36]} {[%emt
00:01:52]} 8. Be3 {[%clk 01:10:07]} {[%emt 00:06:17]} Qd7 {[%clk 00:56:21]}
{[%emt 00:11:45]} 9. Nxe6 {[%clk 01:03:51]} {[%emt 00:06:45]} Nxe6 {[%clk
00:56:01]} {[%emt 00:00:51]} 10. cxd5 {[%clk 01:04:00]} {[%emt 00:00:21]} cxd5
{[%clk 00:56:24]} {[%emt 00:00:07]} 11. Qb3 {[%clk 01:02:41]} {[%emt 00:01:49]}
Nc6 {[%clk 00:53:04]} {[%emt 00:03:50]} 12. Nxd5 {[%clk 00:46:36]} {[%emt
00:16:36]} Ncxd4 {[%clk 00:48:56]} {[%emt 00:04:38]} 13. Bxd4 {[%clk 00:45:04]}
{[%emt 00:02:01]} Nxd4 {[%clk 00:49:17]} {[%emt 00:00:09]} 14. Qc4 {[%clk
00:45:08]} {[%emt 00:00:26]} Nc6 {[%clk 00:45:52]} {[%emt 00:03:56]} 15. O-O-O
{[%clk 00:41:14]} {[%emt 00:04:24]} Bh6+ {[%clk 00:42:31]} {[%emt 00:03:50]} 16.
f4 {[%clk 00:39:45]} {[%emt 00:02:00]} Qc8 {[%clk 00:41:09]} {[%emt 00:01:53]}
17. Qc5 {[%clk 00:33:52]} {[%emt 00:06:23]} O-O {[%clk 00:37:08]} {[%emt
00:04:30]} 18. Bb5 {[%clk 00:32:48]} {[%emt 00:01:35]} Kh8 {[%clk 00:31:25]}
{[%emt 00:06:13]} 19. g3 {[%clk 00:28:25]} {[%emt 00:04:53]} e6 {[%clk
00:29:29]} {[%emt 00:02:25]} 20. Nc3 {[%clk 00:25:37]} {[%emt 00:03:18]} Nb8
{[%clk 00:23:38]} {[%emt 00:06:22]} 21. Qxc8 {[%clk 00:21:43]} {[%emt
00:04:23]} Rxc8 {[%clk 00:23:55]} {[%emt 00:00:12]} 22. Kb1 {[%clk 00:22:01]}
{[%emt 00:00:12]} a6 {[%clk 00:21:23]} {[%emt 00:03:02]} 23. Be2 {[%clk
00:22:03]} {[%emt 00:00:27]} b5 {[%clk 00:20:11]} {[%emt 00:01:43]} 24. Rd3
{[%clk 00:20:03]} {[%emt 00:02:30]} Bf8 {[%clk 00:19:36]} {[%emt 00:01:05]} 25.
Rhd1 {[%clk 00:17:55]} {[%emt 00:02:38]} Kg7 {[%clk 00:19:24]} {[%emt
00:00:42]} 26. Rd8 {[%clk 00:16:39]} {[%emt 00:01:45]} Nc6 {[%clk 00:18:16]}
{[%emt 00:01:38]} 27. R8d7 {[%clk 00:13:39]} {[%emt 00:03:31]} Rd8 {[%clk
00:15:07]} {[%emt 00:03:39]} 28. Bf3 {[%clk 00:10:41]} {[%emt 00:03:27]} Rxd7
{[%clk 00:14:50]} {[%emt 00:00:47]} 29. Rxd7 {[%clk 00:11:05]} {[%emt
00:00:07]} Rc8 {[%clk 00:15:08]} {[%emt 00:00:12]} 30. Ne4 {[%clk 00:11:02]}
{[%emt 00:00:32]} a5 {[%clk 00:12:53]} {[%emt 00:02:46]} 31. Ng5 {[%clk
00:10:31]} {[%emt 00:01:02]} Nd8 {[%clk 00:12:52]} {[%emt 00:00:31]} 32. Bg4
{[%clk 00:10:09]} {[%emt 00:00:51]} Kg8 {[%clk 00:12:19]} {[%emt 00:01:02]} 33.
h4 {[%clk 00:08:06]} {[%emt 00:02:34]} h5 {[%clk 00:10:57]} {[%emt 00:01:52]}
34. Bf3 {[%clk 00:07:45]} {[%emt 00:00:52]} Bc5 {[%clk 00:09:56]} {[%emt
00:01:31]} 35. g4 {[%clk 00:07:43]} {[%emt 00:00:31]} hxg4 {[%clk 00:10:10]}
{[%emt 00:00:16]} 36. Bxg4 {[%clk 00:08:08]} {[%emt 00:00:04]} Be3 {[%clk
00:10:21]} {[%emt 00:00:21]} 37. a3 {[%clk 00:07:19]} {[%emt 00:01:19]} Bxf4
{[%clk 00:10:29]} {[%emt 00:00:21]} 38. Nf3 {[%clk 00:07:26]} {[%emt 00:00:24]}
Nc6 {[%clk 00:07:22]} {[%emt 00:03:37]} 39. h5 {[%clk 00:07:10]} {[%emt
00:00:46]} g5 {[%clk 00:05:33]} {[%emt 00:02:20]} 40. h6 {[%clk 00:06:16]}
{[%emt 00:01:24]} Nxe5 {[%clk 00:02:31]} {[%emt 00:03:32]} 41. Nxe5 {[%clk
00:06:10]} {[%emt 00:00:36]} Bxe5 {[%clk 00:02:17]} {[%emt 00:00:44]} 42. h7+
{[%clk 00:06:25]} {[%emt 00:00:14]} Kxh7 {[%clk 00:02:08]} {[%emt 00:00:39]} 43.
Rxf7+ {[%clk 00:06:49]} {[%emt 00:00:06]} Kg6 {[%clk 00:02:24]} {[%emt
00:00:14]} 44. Bxe6 {[%clk 00:06:40]} {[%emt 00:00:40]} Re8 {[%clk 00:02:18]}
{[%emt 00:00:35]} 45. Ba2 {[%clk 00:02:14]} {[%emt 00:04:53]} Rb8 {[%clk
00:15:10]} {[%emt 00:03:10]} 46. Ra7 {[%clk 00:17:22]} {[%emt 00:01:22]} a4
{[%clk 00:14:13]} {[%emt 00:01:27]} 47. Bf7+ {[%clk 00:17:27]} {[%emt
00:00:25]} Kf5 {[%clk 00:14:12]} {[%emt 00:00:31]} 48. b4 {[%clk 00:16:41]}
{[%emt 00:01:16]} axb3 {[%clk 00:14:06]} {[%emt 00:00:37]} 49. Bxb3 {[%clk
00:17:05]} {[%emt 00:00:06]} g4 {[%clk 00:14:16]} {[%emt 00:00:19]} 50. Bc2+
{[%clk 00:17:12]} {[%emt 00:00:23]} Kg5 {[%clk 00:13:58]} {[%emt 00:00:47]} 51.
Ra6 {[%clk 00:17:12]} {[%emt 00:00:31]} g3 {[%clk 00:13:38]} {[%emt 00:00:50]}
52. Rg6+ {[%clk 00:17:28]} {[%emt 00:00:15]} Kf4 {[%clk 00:13:45]} {[%emt
00:00:23]} 53. Bd1 {[%clk 00:15:40]} {[%emt 00:02:17]} Ke3 {[%clk 00:10:30]}
{[%emt 00:03:46]} 54. Re6 {[%clk 00:12:18]} {[%emt 00:03:52]} Ke4 {[%clk
00:10:29]} {[%emt 00:00:31]} 55. Bc2+ {[%clk 00:11:11]} {[%emt 00:01:37]} Kf4
{[%clk 00:09:58]} {[%emt 00:01:01]} 56. Rg6 {[%clk 00:08:38]} {[%emt 00:03:03]}
Rb7 {[%clk 00:09:54]} {[%emt 00:00:34]} 57. Rg8 {[%clk 00:04:12]} {[%emt
00:04:56]} Rg7 {[%clk 00:08:16]} {[%emt 00:02:08]} 58. Rf8+ {[%clk 00:04:22]}
{[%emt 00:00:20]} Ke3 {[%clk 00:08:32]} {[%emt 00:00:14]} 59. Re8 {[%clk
00:03:47]} {[%emt 00:01:05]} Rg5 {[%clk 00:08:43]} {[%emt 00:00:18]} 0-1

[Event "Polofinale MCR juniorek 2023"]
[Site "Czech Republic"]
[Date "2023.11.15"]
[Round "6.3"]
[White "Markina, Sofiia"]
[Black "Stastna, Martina"]
[Result "1-0"]
[TimeControl "90 min per 40 moves + 15 min + 30 sec / move from move 1"]
[WhiteFideId "23744014"]
[BlackFideId "385123"]
[WhiteElo "1563"]
[BlackElo "1940"]

1. e4 {[%clk 01:30:58]} {[%emt 00:00:02]} e5 {[%clk 01:30:47]} {[%emt
00:00:13]} 2. Nf3 {[%clk 01:31:17]} {[%emt 00:00:11]} Nc6 {[%clk 01:31:04]}
{[%emt 00:00:13]} 3. Bc4 {[%clk 01:31:37]} {[%emt 00:00:10]} Bc5 {[%clk
01:31:06]} {[%emt 00:00:27]} 4. c3 {[%clk 01:31:52]} {[%emt 00:00:15]} Nf6
{[%clk 01:31:13]} {[%emt 00:00:22]} 5. d3 {[%clk 01:32:12]} {[%emt 00:00:11]}
d6 {[%clk 01:31:03]} {[%emt 00:00:40]} 6. O-O {[%clk 01:32:34]} {[%emt
00:00:09]} Be6 {[%clk 01:29:43]} {[%emt 00:01:50]} 7. Nbd2 {[%clk 01:32:39]}
{[%emt 00:00:25]} Ne7 {[%clk 01:28:28]} {[%emt 00:01:45]} 8. Bxe6 {[%clk
01:31:04]} {[%emt 00:02:05]} fxe6 {[%clk 01:28:46]} {[%emt 00:00:12]} 9. Qb3
{[%clk 01:31:23]} {[%emt 00:00:12]} Qc8 {[%clk 01:24:02]} {[%emt 00:05:13]} 10.
Ng5 {[%clk 01:31:23]} {[%emt 00:00:30]} d5 {[%clk 01:20:38]} {[%emt 00:03:54]}
11. Qb5+ {[%clk 01:31:12]} {[%emt 00:00:41]} Nd7 {[%clk 01:19:56]} {[%emt
00:01:11]} 12. Nxe6 {[%emt 00:01:34]} c6 {[%clk 01:19:36]} 13. Qb3 {[%clk
01:30:51]} {[%emt 00:00:34]} g6 {[%clk 01:17:42]} {[%emt 00:02:28]} 14. exd5
{[%clk 01:28:19]} {[%emt 00:03:02]} cxd5 {[%clk 01:13:28]} {[%emt 00:04:44]} 15.
Nf3 {[%clk 01:13:51]} {[%emt 00:14:58]} Bd6 {[%clk 01:05:50]} {[%emt 00:08:08]}
16. Bh6 {[%clk 01:12:05]} {[%emt 00:02:17]} Nb6 {[%clk 00:57:17]} {[%emt
00:09:04]} 17. Ng7+ {[%clk 01:08:47]} {[%emt 00:03:47]} Kd7 {[%clk 00:53:03]}
{[%emt 00:04:43]} 18. Rfe1 {[%clk 01:08:14]} {[%emt 00:01:04]} Nc6 {[%clk
00:46:12]} {[%emt 00:07:21]} 19. c4 {[%clk 01:05:34]} {[%emt 00:03:10]} Qg8
{[%clk 00:42:45]} {[%emt 00:03:57]} 20. c5 {[%clk 01:03:03]} {[%emt 00:03:01]}
Bxc5 {[%clk 00:41:33]} {[%emt 00:01:43]} 21. Nxe5+ {[%clk 01:01:54]} {[%emt
00:01:39]} Nxe5 {[%clk 00:38:23]} {[%emt 00:03:39]} 22. Rxe5 {[%clk 01:02:20]}
{[%emt 00:00:05]} a6 {[%clk 00:31:35]} {[%emt 00:07:18]} 23. Rae1 {[%clk
00:59:27]} {[%emt 00:03:22]} Qf7 {[%clk 00:26:18]} {[%emt 00:05:47]} 24. d4
{[%clk 00:56:01]} {[%emt 00:03:56]} Raf8 {[%clk 00:21:27]} {[%emt 00:05:21]} 25.
Nf5 {[%clk 00:54:24]} {[%emt 00:02:08]} Bd6 {[%clk 00:21:18]} {[%emt 00:00:38]}
26. Re7+ {[%clk 00:53:02]} {[%emt 00:01:52]} 1-0